Cogmind - Beta 16 @@@ ROGUE MODE // 2026.01.06 @ 15:00:34 Player: Qvest Result: Destroyed by QZ-141(R) with Subdweller Machine Gun Performance ------------- Evolutions (0) 0 Regions Visited (3) 600 Robots Destroyed (17) 85 Value Destroyed (276) 276 Prototype IDs (1) 20 Alien Tech Used (0) 0 Bonus (0) 0 TOTAL SCORE: 981 Bonus ------- None Cogmind --------- Core Integrity 0/250 Matter 271/300 Energy 100/100 System Corruption 2% Temperature Cool (0) Movement Flying (35) Location -10/Subcaves Parts ------- > --- POWER (1) -------- (None) > --- PROPULSION (2) --- VTOL Module > --- UTILITY (2) ------ Seismic Detector > --- WEAPON (2) ------- (None) > --- INVENTORY (5) ---- Flight Unit High-capacity Matter Pod (183) Scrap Shield Improved Medium Laser Peak State ------------ > --- POWER ------------ Light Nuclear Core > --- PROPULSION ------- Compact Wheel Compact Wheel > --- UTILITY ---------- High-capacity Storage Unit Seismic Detector > --- WEAPON ----------- Improved Medium Laser Heavy Assault Rifle > --- INVENTORY -------- Light Ion Engine Compact Wheel Compact Wheel Flight Unit Flight Unit Flight Unit Flight Unit Flight Unit Flight Unit Flight Unit Flight Unit Small Storage Unit Small Storage Unit High-capacity Matter Pod Terrain Scanner ECM Suite Small Laser Light Assault Rifle Heavy Assault Rifle Heavy Assault Rifle [Rating: 14] Favorites ----------- Power Light Ion Engine Engine Light Ion Engine Power Core Light Nuclear Core Propulsion Compact Wheel Leg Aluminum Leg Wheel Compact Wheel Flight Unit VTOL Module Utility Seismic Detector Device Seismic Detector Storage High-capacity Storage Unit Weapon Light Assault Rifle Energy Gun Improved Medium Laser Ballistic Gun Light Assault Rifle Build | -11 -10 -10 -10 ------- Run | Yrd Mat Min Sub Slots Evolved . | . . . . Power . | . . . . Propulsion . | . . . . Utility . | . . . . Weapon . | . . . . Parts Attached 25 | 8 13 1 3 Power 4 | 1 2 . 1 Engine 3 | 1 1 . 1 Core 1 | . 1 . . Reactor . | . . . . Propulsion 7 | 2 3 . 2 Treads . | . . . . Leg 2 | 2 . . . Wheel 3 | . 3 . . Hover . | . . . . Flight 2 | . . . 2 Utility 6 | 3 2 1 . Device 3 | 2 . 1 . Storage 3 | 1 2 . . Processor . | . . . . Hackware . | . . . . Protection . | . . . . Artifact . | . . . . Weapon 8 | 2 6 . . Energy Gun 1 | . 1 . . Energy Cannon . | . . . . Ballistic Gun 7 | 2 5 . . Ballistic Cannon . | . . . . Launcher . | . . . . Special Weapon . | . . . . Impact Weapon . | . . . . Slashing Weapon . | . . . . Piercing Weapon . | . . . . Special Melee Weapon . | . . . . Unidentified Prototypes 1 | . 1 . . Parts Lost 18 | . 1 1 16 Power 2 | . 1 1 . Propulsion 10 | . . . 10 Utility 2 | . . . 2 Weapon 4 | . . . 4 Highest Loss Streak 16 | . 1 1 16 To Critical Strikes . | . . . . Average Backups 14 | 3 14 19 18 Power . | . 1 . . Propulsion 7 | 2 7 11 10 Utility 3 | . 3 3 3 Weapon 2 | . 2 5 3 Tool/Special . | . . . . Unused Backups 15 | . 10 . 5 Power 1 | . 1 . . Propulsion 7 | . 5 . 2 Utility 5 | . 3 . 2 Weapon 2 | . 1 . 1 Tool/Special . | . . . . Average Slot Usage (%) 98 | . 99 100 93 Engine 7 | . 6 5 13 Core 6 | . 7 8 . Leg 6 | . 8 . . Wheel 21 | . 19 28 24 Device 14 | . 14 14 14 Storage 13 | . 14 14 13 Ballistic Gun 27 | . 28 28 26 Peak Build Rating 14 | 9 14 14 14 Average Rating 9 | 5 9 13 11 On Entrance 8 | . 8 14 12 Avg Prop Armor Cover (%) . | . . . . Naked Turns . | . . . . Heaviest Build 52 | 12 52 52 52 Greatest Support 32 | 20 32 32 32 Greatest Overweight (x) 1 | . 1 1 1 Average Overweight (x) . | . . 1 . Largest Inventory Capacity 20 | 8 20 20 20 Average Capacity 16 | 7 16 20 19 Most Carried 20 | 8 20 20 20 Average Carried 14 | 4 14 19 19 Final Capacity 20 | 8 20 20 5 Final Carried 20 | 8 20 20 5 Class Distribution -------------------- 100% | Mutant Dominant Class ---------------- Mutant | -10/Materials Mutant | -10/Mines Mutant | -10/Subcaves Resources | -11 -10 -10 -10 ----------- Run | Yrd Mat Min Sub Matter Collected 1040 | 304 520 20 196 Remotely . | . . . . Salvage Created 539 | 95 322 20 102 Parts 44 | 6 27 4 7 Haulers Intercepted . | . . . . Recyclers Shooed 1 | . 1 . . Parts Field Recycled . | . . . . Retrieved Matter . | . . . . Parts Self-Destructed 4 | . . . 4 Prevented . | . . . . Parts Restored . | . . . . Kills | -11 -10 -10 -10 ------- Run | Yrd Mat Min Sub Combat Hostiles Destroyed 10 | . 8 . 2 Guns 10 | . 8 . 2 Classes Destroyed 6 | 2 3 . 1 Tunneler 3 | 2 . 1 . Recycler 3 | 1 2 . . Watcher 1 | . 1 . . Swarmer 6 | . 6 . . Grunt 2 | . 2 . . Subdweller 2 | . . . 2 Best Kill Streak 5 | 2 5 1 2 Combat Bots Only 5 | . 5 . 2 Max Kills in Single Turn 1 | 1 1 1 1 Gunslinging . | . . . . Exploded . | . . . . Melee . | . . . . Uniques/NPCs Destroyed . | . . . . Combat | -11 -10 -10 -10 -------- Run | Yrd Mat Min Sub Hostile Shots Fired 74 | . 46 . 28 Missed 20 | . 13 . 7 Hits 54 | . 33 . 21 Projectile 54 | . 33 . 21 Critical Strikes 2 | . . . 2 Damage Taken 900 | . 349 47 504 Core 263 | . 91 . 172 Absorbed by Shields . | . . . . Core Remaining (%) 100 | 100 . . . Volleys Fired 48 | 6 32 3 7 Largest 2 | 2 2 2 2 Hottest 46 | 40 40 46 46 Shots Fired 96 | 12 64 6 14 Gun 96 | 12 64 6 14 Cannon . | . . . . Launcher . | . . . . Special . | . . . . Kinetic 96 | 12 64 6 14 Thermal . | . . . . Explosive . | . . . . Electromagnetic . | . . . . Robot Hit Streak 12 | 11 9 5 12 Robot Miss Streak 4 | . 4 . 1 Penetration Max . | . . . . Secondary Targets 2 | . 2 . . Max Gunslinging Chain 1 | . 1 . . Shots Hit Robots 65 | 11 37 5 12 Core Hits 28 | 5 18 1 4 Critical Kills . | . . . . Critical Parts Destroyed . | . . . . Critical Strikes . | . . . . Melee Attacks . | . . . . Impact . | . . . . Slashing . | . . . . Piercing . | . . . . Sneak Attacks . | . . . . Combat Hostiles . | . . . . Follow-up Attacks . | . . . . Damage Inflicted 714 | 113 414 42 145 Guns 697 | 113 404 42 138 Cannons . | . . . . Explosions . | . . . . Melee . | . . . . Ramming 17 | . 10 . 7 Kinetic 697 | 113 404 42 138 Thermal . | . . . . Explosive . | . . . . Electromagnetic . | . . . . Impact . | . . . . Slashing . | . . . . Piercing . | . . . . Highest Corruption 2 | . 2 2 2 Average Corruption 2 | . 2 2 2 Corruption Purged . | . . . . Corruption Blocked . | . . . . Effects 5 | . . 2 3 Message Errors 1 | . . 1 . Matter Fused 2 | . . . 2 Parts Fused 1 | . . . 1 Data Loss (minor) 1 | . . 1 . Overload Shots . | . . . . Overflow Damage . | . . . . Projectiles . | . . . . Explosions . | . . . . Melee . | . . . . Knockbacks . | . . . . Impact . | . . . . Kinetic . | . . . . Secondary . | . . . . Self-Inflicted Damage 8 | . 5 . 3 Shots . | . . . . Rammed 2 | . 1 . 1 Targets Rammed 2 | . 1 . 1 Kicked . | . . . . Crushed . | . . . . Highest Temperature 12 | . 12 . . Average Temperature 5 | . 5 . . Received Heat Transfer 144 | . 120 . 24 Siege Activations . | . . . . Martial Activations . | . . . . Shielding Activations . | . . . . Robots Disrupted . | . . . . Combat Hostiles . | . . . . Robots Corrupted . | . . . . Combat Hostiles . | . . . . Parts Fried . | . . . . Impact Corruptions . | . . . . Robots Melted . | . . . . Combat Hostiles . | . . . . Parts Melted . | . . . . Heat Transferred . | . . . . Parts Sabotaged . | . . . . Parts Stolen . | . . . . Parts Stripped . | . . . . Power Chain Reactions . | . . . . Alert | -11 -10 -10 -10 ------- Run | Yrd Mat Min Sub Maximum Alert Level . | . . . . Low Security (%) 100 | 100 100 100 . Level 1 . | . . . . Level 2 . | . . . . Level 3 . | . . . . Level 4 . | . . . . Level 5 . | . . . . High Security . | . . . . Max Security . | . . . . Peak Influence 120 | 5 120 5 . Initial . | . . . . Average 28 | . 35 . . Influence Increases 258 | 15 238 5 . Destroy 0b10 Robot/C 160 | . 160 . . Destroy 0b10 Robot/NC 35 | 15 15 5 . Destroy Leader 32 | . 32 . . Destroy Structure 1 | . 1 . . Lose Combat Pursuer 30 | . 30 . . Influence Decreases 258 | 15 238 5 . Time Decay 248 | 15 228 5 . Lost Part 10 | . 10 . . Squads Dispatched 1 | . 1 . . Investigation . | . . . . Extermination . | . . . . Reinforcement 1 | . 1 . . Assault . | . . . . Garrison . | . . . . Intercept . | . . . . Searches Triggered . | . . . . Construction Impeded . | . . . . Haulers Reinforced . | . . . . Active Scanning Responses . | . . . . Cargo Convoy Interrupts . | . . . . Stealth | -11 -10 -10 -10 --------- Run | Yrd Mat Min Sub Distress Signals 2 | . 2 . . Communications Jammed . | . . . . Distress Signals . | . . . . Times Spotted 26 | . 16 . 10 Peak Tracking Total 8 | . 6 . 8 Tactical Retreats 2 | . 2 . . Traps | -11 -10 -10 -10 ------- Run | Yrd Mat Min Sub Traps Triggered 1 | . . 1 . Indirectly . | . . . . Trap Hack Attempts . | . . . . Triggered . | . . . . Disarmed . | . . . . Reprogrammed . | . . . . Reused . | . . . . Traps Extracted . | . . . . Installed . | . . . . Triggered . | . . . . Machines | -11 -10 -10 -10 ---------- Run | Yrd Mat Min Sub Machines Disabled . | . . . . Max in Single Turn . | . . . . Machines Repaired . | . . . . Machines Dismantled . | . . . . Machines Sabotaged . | . . . . Overloaded Fab Kills . | . . . . Hacking | -11 -10 -10 -10 --------- Run | Yrd Mat Min Sub Machines Accessed 1 | . . 1 . Terminals . | . . . . Fabricators . | . . . . Repair Stations . | . . . . Recycling Units . | . . . . Scanalyzers . | . . . . Garrison Access . | . . . . Total Hacks 1 | . . 1 . Successful 1 | . . 1 . Failed . | . . . . Catastrophic . | . . . . Database Lockouts . | . . . . Manual . | . . . . Terminals . | . . . . Fabricators . | . . . . Repair Stations . | . . . . Recycling Units . | . . . . Scanalyzers . | . . . . Garrison Access . | . . . . Terminal Hacks 1 | . . 1 . Open Door 1 | . . 1 . Fabricator Hacks . | . . . . Repair Station Hacks . | . . . . Recycling Unit Hacks . | . . . . Scanalyzer . | . . . . Garrison Access Hacks . | . . . . Unauthorized Hacks . | . . . . Terminals . | . . . . Fabricators . | . . . . Repair Stations . | . . . . Recycling Units . | . . . . Scanalyzers . | . . . . Garrison Access . | . . . . Data Cores Recovered . | . . . . Used . | . . . . Hacking Detections . | . . . . Full Trace Events . | . . . . Feedback Events . | . . . . Feedback Blocked . | . . . . Robot Schematics Acquired . | . . . . Robots Built . | . . . . Authchips . | . . . . Time . | . . . . Total Robot Build Rating . | . . . . Part Schematics Acquired . | . . . . Parts Built . | . . . . Authchips . | . . . . Time . | . . . . Total Part Build Rating . | . . . . Part Studies Acquired . | . . . . Parts Repaired . | . . . . Time . | . . . . Parts Recycled . | . . . . Recycled Matter . | . . . . Retrieved Matter . | . . . . Retrieved Components . | . . . . Parts Scanalyzed . | . . . . Part Schematics Acquired . | . . . . Parts Damaged . | . . . . Bothacking | -11 -10 -10 -10 ------------ Run | Yrd Mat Min Sub Used RIF Installer . | . . . . Robots Hacked . | . . . . Non-combat . | . . . . Combat . | . . . . Robot Hacks Applied . | . . . . Relay Couplers Released . | . . . . Fabnet Peak Effective % . | . . . . Robots Rewired . | . . . . Allies Hacked . | . . . . Hacks Repelled . | . . . . Allies | -11 -10 -10 -10 -------- Run | Yrd Mat Min Sub Total Allies . | . . . . Largest Group . | . . . . Highest-Rated Group . | . . . . Highest-Rated Ally . | . . . . Total Orders . | . . . . Ally Attacks . | . . . . Total Damage . | . . . . Kills . | . . . . Allies Corrupted . | . . . . Allies Melted . | . . . . Intel | -11 -10 -10 -10 ------- Run | Yrd Mat Min Sub Active Infowar (turns) 1066 | 11 799 87 169 Terrain 1 | 1 . . . Seismic 1065 | 10 799 87 169 Robot Analysis Total . | . . . . Derelict Logs Recovered 2 | . . 1 1 Drone Launches . | . . . . Drone Recoveries . | . . . . Exploration | -11 -10 -10 -10 ------------- Run | Yrd Mat Min Sub Turns Passed 1169 | 114 799 87 169 Spaces Moved 661 | 71 402 66 122 Core 11 | 11 . . . Treads . | . . . . Legs 222 | 60 162 . . Wheels 420 | . 240 66 114 Hover . | . . . . Flight 8 | . . . 8 Fastest Speed 32 | 50 100 115 32 Average Speed 113 | 109 115 115 109 Slowest Speed 120 | 120 120 115 115 Overloaded Moves . | . . . . Propulsion Burnouts . | . . . . Robots Hopped 3 | . . . 3 Potential Cave-ins . | . . . . Cave-ins Triggered . | . . . . Exploration Rate (%) 23 | 6 57 23 8 Regions Visited 3 Branch Regions 2 Pre-discovered Areas 1 | . . 1 . Known Exits Taken . | . . . . Unknown Exits Taken 3 | 1 1 1 . Scrap Searched 3 | . . . 3 Spaces Dug . | . . . . Terrain Destroyed . | . . . . Melee . | . . . . Projectile . | . . . . AOE . | . . . . Terrain Rammed . | . . . . Walls Destroyed . | . . . . Machines Disabled . | . . . . Actions | -11 -10 -10 -10 --------- Run | Yrd Mat Min Sub Total 1000 | 93 694 70 143 Wait 193 | . 187 . 6 Move 652 | 70 401 65 116 Hop 3 | . . . 3 Pick Up 40 | 9 30 . 1 Fast Attach 7 | 6 1 . . Attach 5 | 1 1 1 2 Detach . | . . . . Swap 17 | 1 14 1 1 Drop 33 | . 27 . 6 Fire 48 | 6 32 3 7 Melee . | . . . . Ram 2 | . 1 . 1 Kick . | . . . . Crush . | . . . . Escape Stasis . | . . . . Rewire . | . . . . Trap . | . . . . Miscellaneous . | . . . . Route ------- -11/Scrapyard -10/Materials -10/Mines -10/Subcaves History --------- Turn | Location | Event 6 | -11/Scrapyard | Discovered new exit (range 15) 115 | -11/Scrapyard | Entered Materials 302 | -10/Materials | Build established: Mutant 538 | -10/Materials | Discovered new exit (range 12) 914 | -10/Materials | Entered Mines 931 | -10/Mines | Learned location of Zion (-6) 953 | -10/Mines | Met a Derelict who couldn't figure out how to use a Trap Extractor 997 | -10/Mines | Discovered new exit (range 3) 1001 | -10/Mines | Entered Subcaves 1002 | -10/Subcaves | Approached by a straggling Scientist 1109 | -10/Subcaves | Learned Materials trap positions 1145 | -10/Subcaves | Ambushed by swarm of Subdwellers 1148 | -10/Subcaves | Ambushed by Subdwellers from Twisted Machinery 1148 | -10/Subcaves | Ambushed by Subdwellers from Twisted Machinery 1159 | -10/Subcaves | Core integrity fell below 50% 1167 | -10/Subcaves | Core integrity fell below 20% 1170 | -10/Subcaves | Destroyed by QZ-141(R) with Subdweller Machine Gun Last Messages --------------- 01162_ Hvy. Assault Rifle crushed and broken. 01162_ Sml. Storage Unit crushed and broken. 01162_ Hvy. Assault Rifle crushed and broken. 01162_ ECM Suite crushed and broken. 01162_ Flight Unit crushed and broken. 01162_ Com. Wheel crushed and broken. 01162_ Flight Unit crushed and broken. 01162_ Com. Wheel crushed and broken. 01162_ VTOL Module crushed and broken. 01162_ Imp. Medium Laser crushed and broken. 01162_ Flight Unit crushed and broken. 01162_ Dropped Hvy. Assault Rifle. 01162_ Hvy. Assault Rifle crushed and broken. 01163_ Dropped Sub. Power Source. 01163_ Sub. Power Source crushed and broken. 01164_ A7-Y0P(R) emerges from the Twisted Machinery. 01166_ 6M-N39(R) destroyed. 01167_ Hvy. Assault Rifle destroyed. 01168_ VTOL Module destroyed. Map ----- +----------------------------------------------------+ | ?????????????????????????????????????????????????? | | ?????????????????????????????????????????????????? | | ?????????????????????????????????????????????????? | | ?????????????????????????????????????????????????? | | ?????????????????????????????????????????????????? | | ?????????????????????????????????????????????????? | | ?????????????????????????????????????????????????? | | ????????????????????????????????????????###??????? | | ??????????????????????????????????????? ???????? | | ??????????????????????????????????????? ????????? | | ?????????????????????????????????????? ?????????? | | ????????????????????????????????????? ??????????? | | ????????????????????????????????????? #??????????? | | ??????????????????????????????????## #??????????? | | ????????????????????????????????## # ##?????????? | | ??????????????????????????????### ??????????? | | ?????????????????????????????## # #???????????? | | ?????????????????????????????# #?????? ?????? | | ?????????????????????????????# #???? #?????? | | ?????????????????????????????# # ##?### ??????? | | ?????????????????????#####??## ### # ##????? | | ????????????????????## #"#### # #????? | | ????????????????????# R/!# # # ## ## ##????? | | ????????????????????####RR#! ####?#? # #????? | | ???????????????????????#RR#&#" ####### ##????? | | ???????????????????????##@RR##!%## #????? | | ????????????????????????###&[! =* #????????? | | ??????????????????????????## ##????????? | | ???????????????????????????## # #?????????? | | ????????????????????????????#### ##???????????? | | ???????????????????????????????# ########??????? | | ???????????????????????????????## ### # ##?????? | | ???????????????????????????????## ####### | | ???????????????????????????????# # # | | ???????????????????????????????# ## # # | | ???????????????????????????????# ####### # | | ???????????????????????????????####?????#### | | ??????????????????????????????????????????## | | ?????????????????????????????????????????## | | ?????????????????????????????????????????# | | ?????????????????????????????????????????# | | ???????????????????????????????????????### ## | | ????????????????????????????????######## ##? | | ???????????????????????????????## ## #?? | | ???????????????????????????????# """###### | | ???????????????????????????????# " ##??## | | ???????????????????????????????# """#???# | | ???????????????????????????????# """"##???# | | ???????????????????????????????## """"##????# | | ????????????????????????????????### """"##?????## | +----------------------------------------------------+ Best States ------------- Heat Dissipation 25 Energy Generation 15 Energy Capacity 200 Matter Stores 300 Matter Capacity 300 Sight Range 16 Terrain Scan Density 10 Evasion (%) 55 Item Schematics ----------------- None Robot Schematics ------------------ None Fabricated ------------ Nothing Repaired ---------- Nothing Studied --------- None Alien Tech Used ----------------- None Achievements -------------- None Challenges ------------ None Game ------ Seed BiometalPiercelightMask Manual? 0 Play Time 00:21:30 Cumulative 48.7 hours Start 2026.01.06 @ 14:39:12 End 2026.01.06 @ 15:00:34 Sessions 1 Manual Loads 0 Difficulty Rogue Special Mode None Game No. 29 Rogue 29 Adventurer 0 Explorer 0 Win Type - Total 0 Types 0/0/0/0/0/0/0/0/0/0 Lore% 11 Gallery% 22 Achievement% 18 Wizard Run 0 Options --------- Layout 1 ASCII 0 Keyboard 0 Movement Arrows Keybinds 0 Fullscreen 1 Font 24/Smallcaps Map View 50x35 Zoom Use 0% Tactical HUD 1 Map Filters NONE Filters NONE Steam 1 RUN: 422addf2-c87e-4598-a172-395469f7c9d0